fUSD/lending_fUSD_20240727
["ID","MTS","AMOUNT","RATE_DAILY","PERIOD"]
[333315239,1722052252414,-720.14,0.00010999,2]
[333315240,1722052252423,-909.12,0.00010999,2]
[333315241,1722052252432,-720.14,0.00010999,2]
[333315242,1722052252441,-909.12,0.00010999,2]
[333315243,1722052252452,-720.14,0.00010999,2]
[333315244,1722052252461,-909.12,0.00010999,2]
[333315245,1722052252470,-909.12,0.00010999,2]
[333315246,1722052252480,-720.14,0.00010999,2]
[333315247,1722052252489,-909.12,0.00010999,2]
[333315248,1722052252499,-720.14,0.00010999,2]
[333315249,1722052252508,-352.71488407,0.00010999,2]
[333315250,1722052252517,-720.14,0.00010999,2]
[333315251,1722052252527,-909.12,0.00010999,2]
[333315252,1722052252536,-720.14,0.00010999,2]
[333315253,1722052252545,-909.12,0.00010999,2]
[333315254,1722052252554,-720.14,0.00010999,2]
[333315255,1722052252563,-720.14,0.00010999,2]
[333315256,1722052252571,-909.12,0.00010999,2]
[333315257,1722052252580,-720.14,0.00010999,2]
[333315258,1722052252589,-909.12,0.00010999,2]
[333315259,1722052252598,-720.14,0.00010999,2]
[333315260,1722052252607,-909.12,0.00010999,2]
[333315261,1722052252616,-720.14,0.00010999,2]
[333315262,1722052252625,-909.12,0.00010999,2]
[333315263,1722052252634,-909.12,0.00010999,2]
[333315264,1722052252643,-720.14,0.00010999,2]
[333315265,1722052252652,-909.12,0.00010999,2]
[333315266,1722052252662,-720.14,0.00010999,2]
[333315267,1722052252671,-500.0,0.00010999,2]
[333315268,1722052252680,-909.12,0.00010999,2]
[333315269,1722052252690,-720.14,0.00010999,2]
[333315270,1722052252701,-909.14,0.00010999,2]
[333315271,1722052252710,-720.14,0.00010999,2]
[333315272,1722052252720,-501.13795996,0.00010999,2]
[333315273,1722052252731,-720.14,0.00010999,2]
[333315274,1722052252741,-720.14,0.00010999,2]
[333315275,1722052252750,-720.18558064,0.00010999,2]
[333315276,1722052252760,-500.0,0.00010999,2]
[333315277,1722052252769,-500.0,0.00010999,2]
[333315278,1722052252779,-834.92,0.00010999,2]
[333315279,1722052252788,-834.92,0.00010999,2]
[333315280,1722052252797,-834.92,0.00010999,2]
[333315281,1722052252807,-834.92,0.00010999,2]
[333315282,1722052252816,-834.92,0.00010999,2]
[333315283,1722052252826,-834.92,0.00010999,2]
[333315284,1722052252835,-834.92,0.00010999,2]
[333315285,1722052252844,-834.92,0.00010999,2]
[333315286,1722052252852,-834.92,0.00010999,2]
[333315287,1722052252862,-834.92,0.00010999,2]
[333315288,1722052252871,-834.92,0.00010999,2]
[333315289,1722052252880,-834.92,0.00010999,2]
[333315290,1722052252889,-834.92,0.00010999,2]
[333315291,1722052252899,-834.92,0.00010999,2]
[333315292,1722052252908,-834.92,0.00010999,2]
[333315293,1722052252917,-834.92,0.00010999,2]
[333315294,1722052252926,-834.92,0.00010999,2]
[333315295,1722052252935,-834.92,0.00010999,2]
[333315296,1722052252944,-834.92,0.00010999,2]
[333315297,1722052252953,-834.92,0.00010999,2]
[333315298,1722052252967,-835.02567584,0.00010999,2]
[333315299,1722052252975,-500.0,0.00010999,2]
[333315300,1722052252985,-501.23841447,0.00010999,2]
[333315301,1722052252994,-500.0,0.00010999,2]
[333315302,1722052253005,-500.0,0.00010999,2]
[333315303,1722052253014,-500.0,0.00010999,2]
[333315304,1722052253023,-500.0,0.00010999,2]
[333315305,1722052253032,-500.0,0.00010999,2]
[333315306,1722052253042,-500.0,0.00010999,2]
[333315307,1722052253051,-500.0,0.00010999,2]
[333315308,1722052253060,-500.0,0.00010999,2]
[333315309,1722052253069,-500.0,0.00010999,2]
[333315310,1722052253078,-500.0,0.00010999,2]
[333315311,1722052253087,-222.69691646,0.00010999,2]
[333315312,1722052253096,-335.98391921,0.00010999,2]
[333315313,1722052253106,-533.4,0.00010999,2]
[333315314,1722052253115,-533.4,0.00010999,2]
[333315315,1722052253124,-533.4,0.00010999,2]
[333315316,1722052253134,-533.4,0.00010999,2]
[333315317,1722052253143,-533.4,0.00010999,2]
[333315318,1722052253152,-533.4,0.00010999,2]
[333315319,1722052253161,-533.4,0.00010999,2]
[333315320,1722052253171,-533.4,0.00010999,2]
[333315321,1722052253180,-533.4,0.00010999,2]
[333315322,1722052253189,-533.4,0.00010999,2]
[333315323,1722052253198,-533.4,0.00010999,2]
[333315324,1722052253207,-940.86,0.00010999,2]
[333315325,1722052253216,-533.4,0.00010999,2]
[333315326,1722052253226,-940.86,0.00010999,2]
[333315327,1722052253236,-533.4,0.00010999,2]
[333315328,1722052253245,-940.86,0.00010999,2]
[333315329,1722052253255,-533.4,0.00010999,2]
[333315330,1722052253264,-533.46,0.00010999,2]
[333315331,1722052253273,-542.86657498,0.00010999,2]
[333315332,1722052253282,-940.86,0.00010999,2]
[333315333,1722052253292,-940.86,0.00010999,2]
[333315334,1722052253301,-940.86,0.00010999,2]
[333315335,1722052253310,-940.86,0.00010999,2]
[333315336,1722052253319,-940.86,0.00010999,2]
[333315337,1722052253328,-940.86,0.00010999,2]
[333315338,1722052253338,-940.86,0.00010999,2]
[333315339,1722052253347,-940.86,0.00010999,2]
[333315340,1722052253356,-1443.52,0.00010999,2]
[333315341,1722052253366,-1443.52,0.00010999,2]
[333315342,1722052253375,-940.86,0.00010999,2]
[333315343,1722052253384,-1443.52,0.00010999,2]
[333315344,1722052253394,-940.86,0.00010999,2]
[333315345,1722052253403,-1443.52,0.00010999,2]
[333315346,1722052253412,-940.86,0.00010999,2]
[333315347,1722052253421,-940.86,0.00010999,2]
[333315348,1722052253430,-1443.52,0.00010999,2]
[333315349,1722052253439,-940.86,0.00010999,2]
[333315350,1722052253448,-1443.52,0.00010999,2]
[333315351,1722052253458,-940.86,0.00010999,2]
[333315352,1722052253467,-1443.52,0.00010999,2]
[333315353,1722052253478,-940.86,0.00010999,2]
[333315354,1722052253488,-1443.52,0.00010999,2]
[333315355,1722052253498,-940.86,0.00010999,2]
[333315356,1722052253507,-1443.52,0.00010999,2]
[333315357,1722052253516,-1443.52,0.00010999,2]
[333315358,1722052253525,-1443.52,0.00010999,2]
[333315359,1722052253535,-500.0,0.00010999,2]
[333315360,1722052253544,-1443.52,0.00010999,2]
[333315361,1722052253553,-1443.52,0.00010999,2]
[333315362,1722052253563,-546.0196984,0.00010999,2]
[333315363,1722052253572,-1443.52,0.00010999,2]
[333315364,1722052253582,-940.86,0.00010999,2]
[333315365,1722052253591,-500.0,0.00010999,2]
[333315366,1722052253601,-1443.52,0.00010999,2]
[333315367,1722052253611,-941.02,0.00010999,2]
[333315368,1722052253620,-500.0,0.00010999,2]
[333315369,1722052253630,-1443.52,0.00010999,2]
[333315370,1722052253640,-500.0,0.00010999,2]
[333315371,1722052253649,-1443.52,0.00010999,2]
[333315372,1722052253658,-629.84687845,0.00010999,2]
[333315373,1722052253668,-1443.52,0.00010999,2]
[333315374,1722052253677,-1443.52,0.00010999,2]
[333315375,1722052253830,-1443.52,0.00010999,2]
[333315376,1722052253840,-1443.60781888,0.00010999,2]
[333315377,1722052253850,-500.0,0.00010999,2]
[333315378,1722052253859,-500.0,0.00010999,2]
[333315379,1722052253870,-500.0,0.00010999,2]
[333315380,1722052253880,-468.87823077,0.00010999,2]
[333315381,1722052253890,-500.0,0.00010999,2]
[333315382,1722052253899,-500.0,0.00010999,2]
[333315383,1722052253908,-500.0,0.00010999,2]
[333315384,1722052253917,-500.0,0.00010999,2]
[333315385,1722052253927,-1024.45,0.00010999,2]
[333315386,1722052253936,-500.0,0.00010999,2]
[333315387,1722052253945,-1024.45,0.00010999,2]
[333315388,1722052253957,-1024.45,0.00010999,2]
[333315389,1722052253967,-500.0,0.00010999,2]
[333315390,1722052253976,-1024.45,0.00010999,2]
[333315391,1722052253987,-500.0,0.00010999,2]
[333315392,1722052253997,-1024.45,0.00010999,2]
[333315393,1722052254007,-500.0,0.00010999,2]
[333315394,1722052254017,-1024.45,0.00010999,2]
[333315395,1722052254027,-1024.45,0.00010999,2]
[333315396,1722052254038,-500.0,0.00010999,2]
[333315397,1722052254049,-1024.45,0.00010999,2]
[333315398,1722052254060,-1024.45,0.00010999,2]
[333315399,1722052254069,-1024.45,0.00010999,2]
[333315400,1722052254079,-1024.45,0.00010999,2]
[333315401,1722052254088,-1024.45,0.00010999,2]
[333315402,1722052254097,-1024.45,0.00010999,2]
[333315403,1722052254107,-1024.45,0.00010999,2]
[333315404,1722052254116,-1024.45,0.00010999,2]
[333315405,1722052254125,-1024.45,0.00010999,2]
[333315406,1722052254134,-1024.45,0.00010999,2]
[333315407,1722052254143,-1024.45,0.00010999,2]
[333315408,1722052254152,-1024.45,0.00010999,2]
[333315409,1722052254161,-500.0,0.00010999,2]
[333315410,1722052254171,-1024.45,0.00010999,2]
[333315411,1722052254180,-631.35059711,0.00010999,2]
[333315412,1722052254190,-1024.52939791,0.00010999,2]
[333315413,1722052254199,-500.0,0.00010999,2]
[333315414,1722052254208,-500.0,0.00010999,2]
[333315415,1722052254217,-483.90688407,0.00010999,2]
[333315416,1722052254226,-297.98273606,0.00010999,2]
[333315417,1722052254236,-500.0,0.00010999,2]
[333315418,1722052254245,-721.37,0.00010999,2]
[333315419,1722052254256,-500.0,0.00010999,2]
[333315420,1722052254265,-721.37,0.00010999,2]
[333315421,1722052254276,-721.37,0.00010999,2]
[333315422,1722052254287,-500.0,0.00010999,2]
[333315423,1722052254298,-500.0,0.00010999,2]
[333315424,1722052254309,-721.37,0.00010999,2]
[333315425,1722052254318,-500.0,0.00010999,2]
[333315426,1722052254327,-721.37,0.00010999,2]
[333315427,1722052254337,-500.0,0.00010999,2]
[333315428,1722052254348,-721.37,0.00010999,2]
[333315429,1722052254358,-500.0,0.00010999,2]
[333315430,1722052254367,-500.0,0.00010999,2]
[333315431,1722052254376,-721.37,0.00010999,2]
[333315432,1722052254385,-431.73128818,0.00010999,2]
[333315433,1722052254394,-721.37,0.00010999,2]
[333315434,1722052254403,-721.37,0.00010999,2]
[333315435,1722052254412,-775.98,0.00010999,2]
[333315436,1722052254421,-721.37,0.00010999,2]
[333315437,1722052254430,-775.98,0.00010999,2]
[333315438,1722052254439,-721.37,0.00010999,2]
[333315439,1722052254448,-775.98,0.00010999,2]
[333315440,1722052254458,-775.98,0.00010999,2]
[333315441,1722052254467,-721.37,0.00010999,2]
[333315442,1722052254476,-775.98,0.00010999,2]
[333315443,1722052254486,-775.98,0.00010999,2]
[333315444,1722052254495,-721.37,0.00010999,2]
[333315445,1722052254504,-775.98,0.00010999,2]
[333315446,1722052254514,-721.37,0.00010999,2]
[333315447,1722052254523,-775.98,0.00010999,2]
[333315448,1722052254532,-721.56502296,0.00010999,2]
[333315449,1722052254541,-500.0,0.00010999,2]
[333315450,1722052254550,-775.98,0.00010999,2]
[333315451,1722052254559,-500.0,0.00010999,2]
[333315452,1722052254569,-775.98,0.00010999,2]
[333315453,1722052254578,-512.52939265,0.00010999,2]
[333315454,1722052254587,-775.98,0.00010999,2]
[333315455,1722052254596,-775.98,0.00010999,2]
[333315456,1722052254605,-775.98,0.00010999,2]
[333315457,1722052254614,-775.98,0.00010999,2]
[333315458,1722052254623,-775.98,0.00010999,2]
[333315459,1722052254633,-776.09982133,0.00010999,2]
[333315460,1722052254642,-590.09,0.00010999,2]
[333315461,1722052254651,-590.09,0.00010999,2]
[333315462,1722052254660,-590.09,0.00010999,2]
[333315463,1722052254669,-590.09,0.00010999,2]
[333315464,1722052254678,-590.09,0.00010999,2]
[333315465,1722052254687,-590.09,0.00010999,2]
[333315466,1722052254696,-590.09,0.00010999,2]
[333315467,1722052254706,-590.09,0.00010999,2]
[333315468,1722052254715,-590.09,0.00010999,2]
[333315469,1722052254724,-590.09,0.00010999,2]
[333315470,1722052254734,-590.09,0.00010999,2]
[333315471,1722052254743,-590.09,0.00010999,2]
[333315472,1722052254752,-590.09,0.00010999,2]
[333315473,1722052254762,-590.09,0.00010999,2]
[333315474,1722052254771,-590.09,0.00010999,2]
[333315475,1722052254780,-590.09,0.00010999,2]
[333315476,1722052254790,-590.09,0.00010999,2]
[333315477,1722052254799,-590.09,0.00010999,2]
[333315478,1722052254809,-590.09,0.00010999,2]
[333315479,1722052254819,-608.97,0.00010999,2]
[333315480,1722052254830,-590.09,0.00010999,2]
[333315481,1722052254840,-608.97,0.00010999,2]
[333315482,1722052254849,-608.97,0.00010999,2]
[333315483,1722052254859,-590.13588806,0.00010999,2]
[333315484,1722052254869,-608.97,0.00010999,2]
[333315485,1722052254878,-608.97,0.00010999,2]
[333315486,1722052254888,-608.97,0.00010999,2]
[333315487,1722052254898,-608.97,0.00010999,2]
[333315488,1722052254908,-608.97,0.00010999,2]
[333315489,1722052254917,-608.97,0.00010999,2]
[333315490,1722052254926,-608.97,0.00010999,2]
[333315491,1722052254935,-890.04,0.00010999,2]
[333315492,1722052254946,-608.97,0.00010999,2]
[333315493,1722052254957,-890.04,0.00010999,2]
[333315494,1722052254970,-608.97,0.00010999,2]
[333315495,1722052254979,-890.04,0.00010999,2]
[333315496,1722052254989,-608.97,0.00010999,2]
[333315497,1722052254998,-890.04,0.00010999,2]
[333315498,1722052255008,-608.97,0.00010999,2]
[333315499,1722052255018,-609.03,0.00010999,2]
[333315500,1722052255027,-890.04,0.00010999,2]
[333315501,1722052255038,-890.04,0.00010999,2]
[333315502,1722052255047,-890.04,0.00010999,2]
[333315503,1722052255056,-890.04,0.00010999,2]
[333315504,1722052255066,-890.04,0.00010999,2]
[333315505,1722052255078,-890.04,0.00010999,2]
[333315506,1722052255087,-890.04,0.00010999,2]
[333315507,1722052255096,-890.04,0.00010999,2]
[333315508,1722052255108,-521.6,0.00010999,2]
[333315509,1722052255118,-890.04,0.00010999,2]
[333315510,1722052255129,-521.6,0.00010999,2]
[333315511,1722052255139,-890.04,0.00010999,2]
[333315512,1722052255150,-521.6,0.00010999,2]
[333315513,1722052255160,-890.04,0.00010999,2]
[333315514,1722052255170,-890.24491146,0.00010999,2]
[333315515,1722052255179,-521.6,0.00010999,2]
[333315516,1722052255189,-521.6,0.00010999,2]
[333315517,1722052255198,-521.6,0.00010999,2]
[333315518,1722052255207,-521.6,0.00010999,2]
[333315519,1722052255216,-944.85,0.00010999,2]
[333315520,1722052255226,-521.6,0.00010999,2]
[333315521,1722052255237,-521.6,0.00010999,2]
[333315522,1722052255251,-944.85,0.00010999,2]
[333315523,1722052255260,-944.85,0.00010999,2]
[333315524,1722052255269,-521.6,0.00010999,2]
[333315525,1722052255278,-944.85,0.00010999,2]
[333315526,1722052255287,-521.6,0.00010999,2]
[333315527,1722052255297,-944.85,0.00010999,2]
[333315528,1722052255306,-944.85,0.00010999,2]
[333315529,1722052255316,-521.6,0.00010999,2]
[333315530,1722052255325,-521.6,0.00010999,2]
[333315531,1722052255334,-944.85,0.00010999,2]
[333315532,1722052255343,-500.0,0.00010999,2]
[333315533,1722052255353,-944.85,0.00010999,2]
[333315534,1722052255362,-521.6,0.00010999,2]
[333315535,1722052255372,-500.0,0.00010999,2]
[333315536,1722052255381,-944.85,0.00010999,2]
[333315537,1722052255390,-521.6,0.00010999,2]
[333315538,1722052255400,-500.0,0.00010999,2]
[333315539,1722052255409,-521.63305333,0.00010999,2]
[333315540,1722052255419,-475.89634134,0.00010999,2]
[333315541,1722052255428,-944.85,0.00010999,2]
[333315542,1722052255437,-944.85,0.00010999,2]
[333315543,1722052255447,-944.85,0.00010999,2]
[333315544,1722052255457,-944.85,0.00010999,2]
[333315545,1722052255466,-944.85,0.00010999,2]
[333315546,1722052255476,-1251.01,0.00010999,2]
[333315547,1722052255487,-944.85,0.00010999,2]
[333315548,1722052255497,-1251.01,0.00010999,2]
[333315549,1722052255506,-944.85,0.00010999,2]
[333315550,1722052255516,-1251.01,0.00010999,2]
[333315551,1722052255526,-944.85,0.00010999,2]
[333315552,1722052255535,-1251.01,0.00010999,2]
[333315553,1722052255544,-944.85,0.00010999,2]
[333315554,1722052255553,-1251.01,0.00010999,2]
[333315555,1722052255562,-944.85,0.00010999,2]
[333315556,1722052255571,-1251.01,0.00010999,2]
[333315557,1722052255580,-944.85,0.00010999,2]
[333315558,1722052255590,-1251.01,0.00010999,2]
[333315559,1722052255599,-944.97234266,0.00010999,2]
[333315560,1722052255609,-1251.01,0.00010999,2]
[333315561,1722052255618,-88.48714876,0.00010999,2]
[333315562,1722052255667,-1072.50233623,0.00010999,2]
[333315563,1722052255678,-90.02051501,0.00010999,2]
[333315564,1722052255688,-500.0,0.00010999,2]
[333315565,1722052255698,-500.0,0.00010999,2]
[333315566,1722052255707,-500.0,0.00010999,2]
[333315567,1722052255717,-500.0,0.00010999,2]
[333315568,1722052255727,-500.0,0.00010999,2]
[333315569,1722052255737,-500.0,0.00010999,2]
[333315570,1722052255747,-541.61756784,0.00010999,2]
[333315571,1722052255757,-500.0,0.00010999,2]
[333315572,1722052255767,-500.0,0.00010999,2]
[333315573,1722052255777,-500.0,0.00010999,2]
[333315574,1722052255787,-500.0,0.00010999,2]
[333315575,1722052255797,-500.0,0.00010999,2]
[333315576,1722052255806,-500.0,0.00010999,2]
[333315577,1722052255816,-383.89932515,0.00010999,2]
[333315578,1722052255827,-867.11067485,0.00010999,2]
[333315579,1722052255837,-500.0,0.00010999,2]
[333315580,1722052255846,-602.11645443,0.00010999,2]
[333315581,1722052255858,-648.89354557,0.00010999,2]
[333315582,1722052255867,-500.0,0.00010999,2]
[333315583,1722052255876,-1251.01,0.00010999,2]
[333315584,1722052255886,-1251.01,0.00010999,2]
[333315585,1722052255895,-500.0,0.00010999,2]
[333315586,1722052255904,-500.0,0.00010999,2]
[333315587,1722052255914,-144.50914829,0.00010999,2]
[333315588,1722052255926,-355.49085171,0.00010999,2]
[333315589,1722052255936,-300.32915118,0.00010999,2]
[333315590,1722052255948,-950.68084882,0.00010999,2]
[333315591,1722052255962,-500.0,0.00010999,2]
[333315592,1722052255971,-203.85565772,0.00010999,2]
[333315593,1722052255983,-410.44923542,0.00010999,2]
[333315594,1722052255992,-257.31548495,0.00010999,2]
[333315595,1722052256004,-326.82220256,0.00010999,2]
[333315596,1722052256066,-500.0,0.00010958,2]
[333315597,1722052256075,-302.65,0.00010958,2]
[333315598,1722052256085,-666.87231249,0.00010999,2]
[333315599,1722052256095,-500.0,0.00010999,2]
[333315600,1722052256104,-1251.07432839,0.00010999,2]
[333315601,1722052256114,-490.21587037,0.00010999,2]
[333315602,1722052256125,-9.78412963,0.00010999,2]
[333315603,1722052256135,-357.93770325,0.00010999,2]
[333315604,1722052256144,-500.0,0.00010999,2]
[333315605,1722052256153,-500.0,0.00010999,2]
[333315606,1722052256162,-638.27482791,0.00010999,2]
[333315607,1722052256171,-500.0,0.00010999,2]
[333315608,1722052256180,-500.0,0.00010999,2]
[333315609,1722052256190,-500.0,0.00010999,2]
[333315610,1722052256199,-500.0,0.00010999,2]
[333315611,1722052256208,-500.0,0.00010999,2]
[333315612,1722052256218,-500.0,0.00010999,2]
[333315613,1722052256227,-500.0,0.00010999,2]
[333315614,1722052256239,-500.0,0.00010999,2]
[333315615,1722052256248,-500.0,0.00010999,2]
[333315616,1722052256257,-500.0,0.00010999,2]
[333315617,1722052256266,-1642.2,0.00010999,2]
[333315618,1722052256276,-500.0,0.00010999,2]
[333315619,1722052256285,-1642.2,0.00010999,2]
[333315620,1722052256294,-1642.2,0.00010999,2]
[333315621,1722052256304,-500.0,0.00010999,2]
[333315622,1722052256313,-12.67749124,0.00010999,2]
[333315623,1722052256329,-850.24946448,0.00010999,2]
[333315624,1722052256341,-779.27304428,0.00010999,2]
[333315625,1722052256351,-500.0,0.00010999,2]
[333315626,1722052256361,-1642.2,0.00010999,2]
[333315627,1722052256370,-500.0,0.00010999,2]
[333315628,1722052256379,-1642.2,0.00010999,2]
[333315629,1722052256388,-500.0,0.00010999,2]
[333315630,1722052256398,-1642.2,0.00010999,2]
[333315631,1722052256407,-226.10427214,0.00010999,2]
[333315632,1722052256415,-1642.2,0.00010999,2]
[333315633,1722052256424,-882.72279901,0.00010999,2]
[333315634,1722052256436,-753.47609052,0.00010999,2]
[333315635,1722052256447,-6.00111047,0.00010999,2]
[333315636,1722052256458,-482.46138953,0.00010999,2]
[333315637,1722052256475,-938.35073009,0.00010899,2]
[333315638,1722052256598,-591.74030376,0.0001,2]
[333315639,1722052256609,-636.87818,0.0001,2]
[333315640,1722052256624,-21.38151624,0.0001,2]
[333315641,1722052256633,-279.71269383,0.00010899,2]
[333315642,1722052256644,-2396.5336603,0.00010899,2]
[333315643,1722052256655,-392.29490377,0.00010899,2]
[333315644,1722052256667,-482.00237009,0.00010899,2]
[333315645,1722052256678,-1093.93961604,0.00010899,2]
[333315646,1722052256689,-627.46979119,0.00010899,2]
[333315647,1722052256700,-17030.87963241,0.00010899,2]
[333315648,1722052256710,-5797.39826743,0.000109,2]
[333315649,1722052256719,-8617.16959706,0.00010997,2]
[333315650,1722052256730,-621.71428584,0.00010997,2]
[333315651,1722052256746,-305.20127118,0.00010997,2]
[333315652,1722052256757,-6133.06231493,0.00010997,2]
[333315653,1722052256959,-1595.25934319,0.00010899,2]
[333315654,1722052256973,-3278.93484286,0.00010899,2]
[333315655,1722052256986,-572.85,0.00010899,2]
[333315656,1722052256997,-3606.19176074,0.00010899,2]
[333315657,1722052257206,-1563.91,0.00010899,2]
[333315658,1722052257219,-865.4224377,0.00010899,2]
[333315659,1722052257230,-11758.61501323,0.00010899,2]
[333315660,1722052257241,-2340.1530764,0.000109,2]
[333315661,1722052257250,-13367.47074427,0.00010997,2]
[333315662,1722052257261,-339429.51218467,0.00010997,2]
[333315663,1722052257273,-500.0,0.00010997,2]
[333315664,1722052257284,-269.38241397,0.00010997,2]
[333315719,1722053432275,-167.98,8.219e-05,2]
[333315720,1722053432285,-198.23,8.219e-05,2]
[333315721,1722053432294,-460.76,9.924e-05,2]
[333315722,1722053432303,-250.0,9.925e-05,2]
[333315723,1722053432312,-1305.20919018,9.932e-05,2]
[333315724,1722053432323,-547.21080982,9.932e-05,2]
[333315725,1722053432333,-161.0,9.959e-05,2]
[333315726,1722053432342,-300.0,9.959e-05,2]
[333315727,1722053432351,-3198.85282931,9.96e-05,2]
[333315728,1722053432361,-1759.76755882,9.96e-05,2]
[333315729,1722053432372,-4453.55193141,9.96e-05,2]
[333315735,1722053432529,-412.81053676,9.96e-05,2]
[333315737,1722053432540,-2015.29501095,9.96e-05,2]
[333315742,1722053432758,-555.249,9.96e-05,2]
[333315744,1722053432876,-2262.25562924,9.96e-05,2]
[333315745,1722053432887,-6036.6456329,9.96e-05,2]
[333315746,1722053432898,-3018.95867372,9.96e-05,2]
[333315747,1722053432909,-176.61319689,9.96e-05,2]
[333315748,1722053432919,-2523.38680311,9.991e-05,2]
[333315749,1722053432930,-1249.78872132,9.991e-05,2]
[333315750,1722053432975,-5264.50447557,9.991e-05,2]
[333315751,1722053432985,-6411.70033481,0.00010007,2]
[333315752,1722053433129,-5216.92966519,0.00010007,2]
[333315753,1722053433139,-1000.0,0.00010138,2]
[333315754,1722053433148,-150.0,0.00010428,2]
[333315755,1722053433158,-1237.54331479,0.00010429,2]
[333315756,1722053433175,-8762.45668521,0.00010429,2]
[333315757,1722053433185,-198.23,0.00010474,2]
[333315758,1722053433195,-6972.35501937,0.00010899,2]
[333315759,1722053433204,-6064.33728742,0.00010899,2]
[333315760,1722053433217,-908.01773189,0.00010899,2]
[333315761,1722053433226,-120.77226811,0.00010899,2]
[333315762,1722053433238,-657.64269543,0.00010899,2]
[333315763,1722053433307,-1105.63031946,0.00010899,2]
[333315764,1722053433318,-527.322701,0.00010899,2]
[333315765,1722053433329,-465.33938848,0.00010899,2]
[333315766,1722053438000,-2490.04885821,0.00010429,2]
[333315767,1722053438010,-4095.64764683,0.00010899,2]
[333315771,1722053438196,-2985.69712395,0.00010899,2]
[333315772,1722053438220,-596.39362157,0.00010899,2]
[333315773,1722053438231,-868.88263977,0.00010899,2]
[333315774,1722053438251,-2521.38163402,0.00010899,2]
[333315775,1722053438261,-6972.35501931,0.00010899,2]
[333315776,1722053438270,-6972.35501931,0.00010899,2]
[333315777,1722053438280,-6972.35501931,0.00010899,2]
[333315778,1722053438289,-6972.35501931,0.00010899,2]
[333315779,1722053438298,-5587.01216115,0.00010899,2]
[333315780,1722053438309,-1385.34285816,0.00010899,2]
[333315781,1722053438318,-6972.35501931,0.000109,2]
[333315782,1722053438327,-4927.78852742,0.000109,2]
[333315783,1722053438335,-506.60373068,0.000109,2]
[333315784,1722053438365,-398.64828018,0.000109,2]
[333315785,1722053438376,-468.03168783,0.000109,2]
[333315787,1722053438392,-1173.98706814,0.000109,2]
[333315789,1722053438403,-2380.51776048,0.000109,2]
[333315791,1722053438412,-440.8343533,0.000109,2]
[333315793,1722053438423,-1847.439928,0.000109,2]
[333315795,1722053438434,-2639.51424601,0.000109,2]
[333315797,1722053438444,-4927.78852731,0.000109,2]
[333315799,1722053438453,-4927.78852731,0.000109,2]
[333315801,1722053438462,-66.65976136,0.000109,2]
[333315803,1722053438473,-710.95025,0.000109,2]
[333315805,1722053438483,-714.662132,0.000109,2]
[333315808,1722053438495,-521.449959,0.000109,2]
[333315810,1722053438506,-2914.06642495,0.000109,2]
[333315812,1722053438515,-4927.78852731,0.000109,2]
[333315814,1722053438524,-4927.78852731,0.000109,2]
[333315815,1722053438534,-4927.78852731,0.000109,2]
[333315817,1722053438543,-284.94916556,0.000109,2]
[333315820,1722053438559,-688.5,0.000109,2]
[333315822,1722053438578,-3502.24032318,0.000109,2]
[333315824,1722053438590,-452.09903857,0.000109,2]
[333315826,1722053438599,-4927.78852731,0.000109,2]
[333315828,1722053438608,-1935.31471968,0.000109,2]